bitfinex-derivatives/quotes_ETHF0:USTF0_20260222
["timestamp","ask_amount","ask_price","bid_price","bid_amount"]
[1771798411274,1.09009796,1947.5,1946.8,0.40438309]
[1771798411475,1.09009796,1947.3,1946.8,0.40438309]
[1771798412173,1.09009796,1947.3,1946.7,1.5815741]
[1771798412375,1.09009796,1947.3,1946.8,0.39857607]
[1771798413778,1.09009796,1947.3,1946.6,0.38400166]
[1771798418278,1.09009796,1947.3,1946.6,0.2813059]
[1771798425383,1.09009796,1947.3,1946.8,0.21596637]
[1771798425886,1.09009796,1947.3,1946.7,1.39340685]
[1771798426086,1.09009796,1947.3,1946.7,0.21050066]
[1771798428390,1.09009796,1947.3,1946.7,1.39340685]
[1771798428983,1.09009796,1947.3,1946.7,1.18290619]
[1771798429189,1.09009796,1947.3,1946.5,1.3857255]
[1771798429392,1.09009796,1947.3,1946.6,0.19035343]
[1771798432995,1.09009796,1947.3,1946.7,1.34189981]
[1771798434695,1.08426792,1947.4,1947.1,1.18290619]
[1771798434896,1.08426792,1947.4,1946.9,1.18290619]
[1771798435394,1.08426792,1947.4,1946.9,1.31718123]
[1771798436395,1.08426792,1947.6,1947.1,1.31186298]
[1771798436600,1.08426792,1947.6,1947.1,1.30653809]
[1771798436802,1.08426792,1947.6,1947.1,1.18290619]
[1771798438000,1.08426792,1947.6,1947.1,1.2979715]
[1771798439100,1.08426792,1947.6,1947.1,1.18290619]
[1771798441802,1.08426792,1947.6,1947.1,1.27765698]
[1771798442399,1.08426792,1947.6,1947.1,1.18290619]
[1771798443197,1.08426792,1947.6,1947.0,0.09477242]
[1771798448201,1.08426792,1947.6,1946.9,0.01]
[1771798448407,1.08426792,1947.6,1946.9,0.07269223]
[1771798471424,1.08426792,1947.6,1946.9,0.01]
[1771798497456,0.97222652,1947.4,1946.5,0.0048802]
[1771798498862,0.97222652,1947.4,1946.5,8.0410865]
[1771798503367,0.97222652,1947.4,1946.5,0.0048802]
[1771798505263,0.97222652,1947.4,1946.6,1.18228584]
[1771798505763,0.97222652,1947.4,1946.6,0.25695]
[1771798505970,0.97222652,1947.4,1947.0,1.18228584]
[1771798507168,0.4823651,1947.4,1947.0,1.41511958]
[1771798509170,0.77609447,1947.6,1947.2,1.18228584]
[1771798510268,0.77609447,1947.6,1947.2,1.95351316]
[1771798511470,0.77609447,1947.6,1947.3,0.76758788]
[1771798514967,0.00523351,1947.7,1947.5,0.73634686]
[1771798515174,0.77609447,1948.3,1947.7,0.73634686]
[1771798516166,0.78052484,1948.3,1947.7,0.73634686]
[1771798520783,0.84840467,1948.4,1948.1,0.70751324]
[1771798521377,0.84840467,1948.4,1948.0,1.8845336]
[1771798522081,0.85408362,1948.4,1948.0,1.89042644]
[1771798522673,0.85408362,1948.4,1947.6,0.69307953]
[1771798523477,0.85408362,1948.4,1947.9,1.89078484]
[1771798523681,0.85408362,1948.4,1947.9,0.71225633]
[1771798526287,0.85408362,1948.4,1947.9,0.00375733]
[1771798535592,0.85408362,1948.4,1947.9,0.66838274]
[1771798536392,0.85408362,1948.4,1947.9,0.00375733]
[1771798542302,0.85408362,1948.4,1947.9,0.64478334]
[1771798542900,0.85408362,1948.4,1948.0,1.18228584]
[1771798544811,0.85408362,1948.4,1948.0,1.80996455]
[1771798545011,0.85408362,1948.4,1948.0,1.18228584]
[1771798553621,0.85408362,1948.4,1947.9,0.62491654]
[1771798553822,0.85408362,1948.4,1947.9,0.00375733]
[1771798557027,0.85408362,1948.4,1948.1,1.18228584]
[1771798557426,0.85408362,1948.4,1947.9,1.76237096]
[1771798558127,0.85408362,1948.4,1948.0,0.57467221]
[1771798560229,0.85408362,1948.4,1948.1,1.18228584]
[1771798560429,0.85408362,1948.4,1948.1,1.76030373]
[1771798566337,0.85408362,1948.4,1947.9,0.00375733]
[1771798587352,0.85408362,1948.4,1947.9,0.58012885]
[1771798598765,0.85408362,1948.4,1947.9,0.00375733]
[1771798599365,0.85408362,1948.4,1947.9,0.56659644]
[1771798625287,0.85408362,1948.4,1947.9,0.00375733]
[1771798628586,0.85408362,1948.4,1947.9,0.57195667]
[1771798629290,0.85408362,1948.4,1948.0,1.18061588]
[1771798629588,0.85408362,1948.4,1948.0,1.75472456]
[1771798630591,0.85408362,1948.4,1948.0,1.18061588]
[1771798631790,0.85408362,1948.4,1948.0,1.75788152]
[1771798647104,0.85408362,1948.4,1948.1,0.5626161]
[1771798650008,0.85408362,1948.4,1948.0,1.74297867]
[1771798653516,0.85408362,1948.4,1948.1,0.56239256]
[1771798655721,0.85408362,1948.4,1948.0,1.18061588]
[1771798655921,0.85408362,1948.4,1948.0,1.74262926]
[1771798679534,0.85408362,1948.4,1948.1,0.53298079]
[1771798680230,0.85408362,1948.4,1948.0,0.53296831]
[1771798680425,0.85408362,1948.4,1947.9,8.57293194]
[1771798680631,0.85408362,1948.4,1947.9,0.00375733]
[1771798700955,0.85408362,1948.4,1947.9,0.52360576]
[1771798701153,0.85408362,1948.4,1947.9,0.00375733]
[1771798715364,0.85408362,1948.4,1947.9,0.5257648]
[1771798721575,0.73331079,1948.8,1948.1,1.91329725]
[1771798721871,0.73331079,1948.6,1948.2,0.73254319]
[1771798722072,0.73331079,1949.1,1948.2,0.73254319]
[1771798722272,0.73331079,1948.9,1948.2,0.73254319]
[1771798722473,0.73331079,1948.7,1948.2,0.73254319]
[1771798722673,0.73718624,1948.7,1948.2,0.73254319]
[1771798753603,0.73718624,1948.7,1948.1,9.96166004]
[1771798753803,0.73718624,1948.7,1948.1,8.78124383]
[1771798753997,0.7215847,1948.5,1947.9,0.74879486]
[1771798754403,0.7215847,1948.5,1947.9,1.92921107]
[1771798755000,0.7215847,1948.5,1947.9,0.74879486]
[1771798762506,0.7215847,1948.5,1947.9,1.92921107]
[1771798762711,0.7215847,1948.5,1948.0,0.71005867]
[1771798791937,0.7215847,1948.5,1948.1,1.18041621]
[1771798792143,0.7215847,1948.5,1948.2,0.72395207]
[1771798798547,0.7215847,1948.5,1948.1,1.90436828]
[1771798799653,0.7215847,1948.5,1948.2,0.72395207]
[1771798801855,0.26719452,1948.9,1948.4,0.72395207]
[1771798802054,6.77420538,1948.8,1948.4,0.72395207]
[1771798802255,0.49869282,1948.7,1948.4,0.72395207]
[1771798802552,0.26719452,1948.8,1948.4,0.72395207]
[1771798802752,0.49857214,1948.7,1948.4,0.72395207]
[1771798802954,0.27098423,1948.8,1948.4,0.72395207]
[1771798803153,0.49857174,1948.7,1948.4,0.72395207]
[1771798803345,0.27098423,1948.8,1948.4,0.72395207]
[1771798803549,0.49850639,1948.7,1948.4,0.72395207]
[1771798803745,0.27098423,1948.8,1948.4,0.72395207]
[1771798803951,0.49850639,1948.7,1948.4,0.72395207]
[1771798804152,0.27098423,1948.8,1948.4,0.72395207]
[1771798804453,0.49850639,1948.7,1948.4,0.72395207]
[1771798804653,0.27098423,1948.8,1948.4,0.72395207]
[1771798804855,0.49845949,1948.7,1948.4,0.72395207]
[1771798805156,0.00378971,1948.8,1948.4,0.72395207]
[1771798812260,0.27919931,1949.2,1948.5,0.78011061]
[1771798813160,0.28282412,1949.2,1948.5,0.78011061]
[1771798827867,0.00362481,1949.2,1948.5,0.78011061]
[1771798839273,1.32139752,1949.3,1948.5,0.78011061]
[1771798839577,0.25553589,1949.6,1948.4,9.21637818]
[1771798839578,0.25553589,1949.6,1948.9,0.70330683]
[1771798839780,0.49772707,1949.5,1948.9,0.70330683]
[1771798839977,0.25553589,1949.6,1948.9,0.70330683]
[1771798840277,0.49772707,1949.5,1948.9,0.70330683]
[1771798840577,0.26148343,1949.6,1948.9,0.70330683]
[1771798840779,0.49772964,1949.5,1948.9,0.70330683]
[1771798840977,0.26148343,1949.6,1948.9,0.70330683]
[1771798841178,0.49772964,1949.5,1948.9,0.70330683]
[1771798841379,0.26148343,1949.6,1948.9,0.70330683]
[1771798841580,0.49776274,1949.5,1948.9,0.70330683]
[1771798841774,0.26148343,1949.6,1948.9,0.70330683]
[1771798841974,0.49776251,1949.5,1948.9,0.70330683]
[1771798842170,0.26148343,1949.6,1948.9,0.70330683]
[1771798842474,0.4977625,1949.5,1948.9,0.70330683]
[1771798842674,0.26148343,1949.6,1948.9,0.70330683]
[1771798842877,0.49767674,1949.5,1948.9,0.70330683]
[1771798843180,0.26148343,1949.6,1948.9,0.70330683]
[1771798843381,0.49767674,1949.5,1948.9,0.70330683]
[1771798843581,0.26148343,1949.6,1948.9,0.70330683]
[1771798843784,0.49760283,1949.5,1948.9,0.70330683]
[1771798843978,0.26148343,1949.6,1948.9,0.70330683]
[1771798844180,0.49760283,1949.5,1948.9,0.70330683]
[1771798844379,0.26148343,1949.6,1948.9,0.70330683]
[1771798844580,0.49754434,1949.5,1948.9,0.70330683]
[1771798844783,0.26148343,1949.6,1948.9,0.70330683]
[1771798844984,0.49754411,1949.5,1948.9,0.70330683]
[1771798845185,0.26148343,1949.6,1948.9,0.70330683]
[1771798845382,0.49754411,1949.5,1948.9,0.70330683]
[1771798845589,0.26148343,1949.6,1948.9,0.70330683]
[1771798845788,0.49749664,1949.5,1948.9,0.70330683]
[1771798845988,0.26148343,1949.6,1948.9,0.70330683]
[1771798846188,0.49749664,1949.5,1948.9,0.70330683]
[1771798846389,0.26148343,1949.6,1948.9,0.70330683]
[1771798846592,0.49746011,1949.5,1948.9,0.70330683]
[1771798846792,0.26148343,1949.6,1948.9,0.70330683]
[1771798846991,0.4974601,1949.5,1948.9,0.70330683]
[1771798847291,0.26148343,1949.6,1948.9,0.70330683]
[1771798847492,0.4974333,1949.5,1948.9,0.70330683]
[1771798847694,0.26148343,1949.6,1948.9,0.70330683]
[1771798847991,0.49743334,1949.5,1948.9,0.70330683]
[1771798848294,0.26148343,1949.6,1948.9,0.70330683]
[1771798848483,0.4974159,1949.5,1948.9,0.70330683]
[1771798848687,0.26148343,1949.6,1948.9,0.70330683]
[1771798848887,0.4974159,1949.5,1948.9,0.70330683]
[1771798849088,0.26148343,1949.6,1948.9,0.70330683]
[1771798849290,0.4974159,1949.5,1948.9,0.70330683]
[1771798849490,0.26148343,1949.6,1948.9,0.70330683]
[1771798849788,0.49740681,1949.5,1948.9,0.70330683]
[1771798849991,0.26148343,1949.6,1948.9,0.70330683]
[1771798850190,0.49740681,1949.5,1948.9,0.70330683]
[1771798850495,0.26148343,1949.6,1948.9,0.70330683]
[1771798851897,0.00594754,1949.6,1948.9,0.70330683]
[1771798856597,0.49755516,1949.5,1948.9,0.70330683]
[1771798856798,0.00594754,1949.6,1948.9,0.70330683]
[1771798856998,0.49755516,1949.5,1948.9,0.70330683]
[1771798857199,0.00594754,1949.6,1948.9,0.70330683]
[1771798857394,0.49760767,1949.5,1948.9,0.70330683]
[1771798857596,0.00594754,1949.6,1948.9,0.70330683]
[1771798857895,0.49760769,1949.5,1948.9,0.70330683]
[1771798858192,0.00594754,1949.6,1948.9,0.70330683]
[1771798858393,0.49760769,1949.5,1948.9,0.70330683]
[1771798858695,0.00594754,1949.6,1948.9,0.70330683]
[1771798859599,4.29974694,1950.0,1948.9,0.70330683]
[1771798859799,1.51462674,1950.1,1948.9,0.70330683]
[1771798859800,0.23737017,1949.8,1949.0,0.70330683]
[1771798859997,0.49758922,1949.7,1949.0,0.70330683]
[1771798860297,0.23737017,1949.8,1949.0,0.70330683]
[1771798860599,0.2437398,1949.8,1949.0,0.70330683]
[1771798867302,0.49758474,1949.7,1949.0,0.70330683]
[1771798867602,0.2437398,1949.8,1949.0,0.70330683]
[1771798867800,0.49758474,1949.7,1949.0,0.70330683]
[1771798868102,0.2437398,1949.8,1949.0,0.70330683]
[1771798868304,0.4976313,1949.7,1949.0,0.70330683]
[1771798868497,0.2437398,1949.8,1949.0,0.70330683]
[1771798868802,0.4976313,1949.7,1949.0,0.70330683]
[1771798869004,0.2437398,1949.8,1949.0,0.70330683]
[1771798869204,0.4976313,1949.7,1949.0,0.70330683]
[1771798869505,0.2437398,1949.8,1949.0,0.70330683]
[1771798869704,0.49769954,1949.7,1949.0,0.70330683]
[1771798870002,0.2437398,1949.8,1949.0,0.70330683]
[1771798870205,0.49769954,1949.7,1949.0,0.70330683]
[1771798870504,0.2437398,1949.8,1949.0,0.70330683]
[1771798870705,0.49767996,1949.7,1949.0,0.70330683]
[1771798870905,0.2437398,1949.8,1949.0,0.70330683]
[1771798871106,0.49767996,1949.7,1949.0,0.70330683]
[1771798871306,0.00636963,1949.8,1949.0,0.70330683]
[1771798871600,0.49766365,1949.7,1949.0,0.70330683]
[1771798871802,0.00636963,1949.8,1949.1,0.77836371]
[1771798872107,0.00636963,1949.8,1949.2,0.77836371]
[1771798872505,1.27709847,1950.1,1949.4,0.77836371]
[1771798873206,0.24708314,1950.2,1949.6,0.77836371]
[1771798873405,0.49728993,1950.1,1949.6,0.77836371]
[1771798873605,0.25131871,1950.2,1949.6,0.78491344]
[1771798873798,0.4972842,1950.1,1949.6,0.78491344]
[1771798873998,0.25131871,1950.2,1949.6,0.78491344]
[1771798874906,0.24624243,1950.1,1949.6,0.78491344]
[1771798875308,1.424955,1949.8,1949.5,0.77836371]
[1771798876008,0.24624243,1949.8,1949.5,0.77836371]
[1771798876310,0.24624243,1949.8,1949.5,0.78220412]
[1771798882011,0.22948936,1950.1,1949.5,0.78220412]
[1771798883312,0.49708997,1950.0,1949.5,0.78220412]
[1771798883611,0.22009681,1949.9,1949.5,0.78220412]
[1771798886110,0.21648071,1950.1,1949.5,0.78220412]
[1771798886310,0.71369241,1950.0,1949.5,0.78220412]
[1771798886510,5.47845951,1950.4,1949.6,0.7771556]
[1771798886709,0.77715682,1951.1,1950.3,1.17871257]
[1771798886909,1.62183954,1951.0,1950.5,1.17871257]
[1771798887109,0.77715682,1951.0,1950.5,1.17871257]
[1771798887311,0.84468272,1950.9,1950.5,1.17871257]
[1771798887515,0.73269432,1951.0,1950.6,0.76743311]
[1771798887812,4.01799495,1952.6,1951.1,0.76743311]
[1771798888020,0.73269432,1952.6,1951.8,0.76743311]
[1771798888313,0.73269432,1952.3,1951.8,0.76743311]
[1771798888506,0.73820836,1952.3,1951.8,0.77307761]
[1771798889613,0.73820836,1952.3,1951.9,0.76743311]
[1771798890516,0.73820836,1952.3,1951.8,1.18435707]
[1771798890713,0.73820836,1952.3,1951.8,0.0056445]
[1771798891014,0.73820836,1952.3,1951.9,0.76743311]
[1771798896520,0.73269432,1952.8,1952.3,0.76743311]
[1771798896726,0.73269432,1952.8,1952.5,1.94614568]
[1771798896931,0.73269432,1953.2,1952.5,1.94614568]
[1771798897224,0.73269432,1953.2,1952.5,0.76743311]
[1771798897425,0.73635861,1953.2,1952.5,0.76743311]
[1771798899830,0.00366429,1953.2,1952.5,0.76743311]
[1771798901529,0.7390473,1953.8,1952.7,0.78303329]
[1771798902429,0.74380894,1953.8,1953.0,0.78303329]
[1771798911841,0.74380894,1953.8,1953.1,0.78303329]
[1771798912842,0.00476164,1953.8,1953.1,0.78303329]
[1771798913340,0.9724174,1953.9,1953.1,0.78303329]
[1771798914345,0.7390473,1953.8,1953.1,0.78303329]
[1771798917250,0.7390473,1953.8,1953.3,0.78303329]
[1771798917449,0.7390473,1953.8,1953.3,0.78788001]
[1771798920547,0.7390473,1953.8,1953.3,0.00484672]
[1771798920948,0.7390473,1953.8,1953.3,0.78788001]
[1771798922557,0.7390473,1953.8,1953.3,0.00484672]
[1771798922757,0.7390473,1953.8,1953.3,0.78788001]
[1771798932966,0.97709056,1953.9,1953.4,0.81206831]
[1771798933162,0.97709056,1953.9,1953.5,0.81206831]
[1771798941271,0.97709056,1953.9,1953.6,0.79786818]
[1771798943274,0.97709056,1953.9,1953.7,0.79786818]
[1771798944475,0.77792731,1954.8,1953.8,0.79786818]
[1771798944674,0.77792731,1954.8,1953.9,0.79786818]
[1771798945577,0.78286724,1954.8,1953.9,0.79786818]
[1771798946277,0.78286724,1954.8,1953.8,6.37756216]
[1771798946478,0.78286724,1954.8,1953.7,6.37756216]
[1771798947376,0.78286724,1954.8,1953.7,0.79786818]
[1771798948280,0.78286724,1954.8,1953.8,0.79786818]
[1771798956386,0.78286724,1954.8,1953.8,7.17543034]
[1771798956885,0.78286724,1954.8,1953.9,0.79786818]
[1771798964185,0.78286724,1954.8,1953.8,6.37756216]
[1771798964391,0.82775697,1954.4,1953.6,0.77769985]
[1771798974298,0.82775697,1954.4,1953.7,0.77769985]
[1771798995228,0.85638752,1954.3,1953.7,0.77769985]
[1771798999327,0.85638752,1954.3,1953.8,0.86581334]
[1771799021741,5.1574989,1954.8,1954.2,0.87356433]
[1771799022046,0.86499886,1954.7,1954.4,0.87356433]
[1771799022348,0.00493993,1954.8,1954.4,0.63589416]
[1771799022643,0.86499886,1955.1,1954.6,0.7638027]
[1771799022840,25.51698632,1955.8,1955.0,0.76407862]
[1771799022841,3.94142319,1955.7,1955.0,0.76407862]
[1771799023140,8.03271994,1956.1,1955.3,4.24639314]
[1771799023141,0.87468292,1956.0,1955.3,4.24639314]
[1771799023346,0.87468292,1955.7,1955.1,11.00207501]
[1771799023539,0.00580847,1955.7,1955.3,0.00234358]
[1771799023740,0.87351343,1956.5,1955.7,0.00320385]
[1771799024042,0.87351343,1956.3,1955.7,0.00320385]
[1771799024645,0.878797,1956.3,1955.7,0.00320385]
[1771799025243,9.08785329,1956.2,1955.7,0.00320385]
[1771799025444,0.00528357,1956.3,1955.9,0.476321]
[1771799026344,0.00528357,1956.3,1956.1,0.43986174]
[1771799026548,0.88959883,1956.2,1955.9,0.43974087]
[1771799026849,9.98273569,1956.3,1955.9,0.43974087]
[1771799027349,0.8948824,1956.3,1955.9,0.43974087]
[1771799028347,0.88138968,1956.5,1956.0,0.44665412]
[1771799029352,0.88523958,1956.5,1956.0,0.44665412]
[1771799029952,9.96888082,1956.4,1956.0,0.44665412]
[1771799030343,0.88102753,1956.4,1956.0,0.44665412]
[1771799030748,9.96888082,1956.4,1956.0,0.44665412]
[1771799031043,0.88110528,1956.2,1955.2,4.22051125]
[1771799031248,9.08785329,1956.3,1955.6,1.17388772]
[1771799031249,0.88110528,1956.3,1955.6,1.17388772]
[1771799031443,0.0038499,1956.5,1955.8,1.17388772]
[1771799031444,0.88110528,1956.0,1955.8,1.17388772]
[1771799031649,0.88110528,1956.0,1955.6,1.17388772]
[1771799031843,5.74193383,1955.9,1955.6,1.61560498]
[1771799032049,0.87459179,1955.9,1955.6,1.61560498]
[1771799032247,0.87459179,1956.1,1955.7,0.44171726]
[1771799032452,0.87459179,1956.3,1955.9,0.44152105]
[1771799032654,0.87459179,1956.3,1955.8,0.81389711]
[1771799032853,0.87468989,1956.1,1955.8,0.81389711]
[1771799033046,0.87468989,1956.1,1955.5,1.98778483]
[1771799033252,0.87468989,1955.9,1955.6,0.81389711]
[1771799034151,0.87845054,1956.2,1955.6,0.81389711]
[1771799034456,0.87845054,1956.1,1955.5,1.97413356]
[1771799034658,0.87854753,1956.0,1955.6,0.79431371]
[1771799034956,0.86499886,1956.4,1955.8,0.79431371]
[1771799035259,0.86499886,1956.4,1955.9,2.04745205]
[1771799035653,0.86499886,1956.4,1955.9,0.87356433]
[1771799037154,0.86499886,1956.4,1955.8,0.87356433]
[1771799037354,0.86499886,1956.4,1955.6,0.87356433]
[1771799037555,0.86499886,1956.2,1955.6,0.87356433]
[1771799040362,0.86499886,1956.2,1955.4,0.87356433]
[1771799040560,0.86499886,1956.2,1955.8,0.87356433]
[1771799041058,0.0038499,1956.5,1956.0,0.87356433]
[1771799041059,0.86499886,1956.4,1956.0,0.87356433]
[1771799041758,0.86499886,1956.4,1955.9,1.17388772]
[1771799041952,0.86499886,1956.4,1955.7,0.87356433]
[1771799043263,0.86499886,1956.4,1955.8,0.87356433]
[1771799043663,0.86499886,1956.4,1955.5,1.17388772]
[1771799043664,0.86499886,1956.4,1956.0,0.87356433]
[1771799043867,0.86884876,1956.5,1956.0,0.87356433]
[1771799045565,0.86884876,1956.5,1955.1,6.38193244]
[1771799045769,0.86499886,1955.4,1954.9,0.87356433]
[1771799046764,0.86499886,1955.4,1954.9,0.00545318]
[1771799046969,0.86499886,1955.1,1954.6,0.87356433]
[1771799048066,0.87079912,1955.1,1954.6,0.88016262]
[1771799051972,1.42357928,1955.0,1953.9,1.44682995]
[1771799052572,1.42357928,1955.0,1953.5,1.44682995]
[1771799052972,3.18272924,1955.0,1953.5,1.45197111]
[1771799053175,1.42357928,1954.9,1953.5,1.45197111]
[1771799058080,1.42357928,1954.9,1953.5,1.4585694]
[1771799062483,1.42357928,1954.9,1953.7,1.36658785]
[1771799064282,1.42357928,1954.9,1953.7,1.37318614]
[1771799066678,1.42357928,1954.9,1954.0,1.36658785]
[1771799067177,1.42357928,1954.9,1954.1,0.00659829]
[1771799067381,1.42357928,1954.9,1954.2,1.36658785]
[1771799068387,1.42357928,1954.9,1954.4,1.36658785]
[1771799071291,1.42357928,1954.9,1954.4,1.37318614]
[1771799072189,1.42357928,1954.9,1954.5,1.37318614]
[1771799072391,1.42357928,1954.9,1954.5,1.36658785]
[1771799072589,1.42357928,1954.9,1954.6,0.00659829]
[1771799072791,1.42357928,1954.9,1953.8,1.36658785]
[1771799073189,1.42357928,1954.9,1954.2,1.36658785]
[1771799073690,1.42357928,1954.9,1954.3,1.37318614]
[1771799073891,1.42357928,1954.9,1954.3,1.36658785]
[1771799074082,1.42357928,1954.9,1954.4,1.37318614]
[1771799074287,1.42357928,1954.9,1954.4,1.36658785]
[1771799074588,1.42357928,1954.9,1954.4,1.37318614]
[1771799075790,1.42357928,1954.9,1954.4,1.36658785]
[1771799076191,1.42357928,1954.9,1954.5,0.00659829]
[1771799077990,1.42357928,1954.9,1954.4,1.36658785]
[1771799078390,1.42357928,1954.9,1954.5,0.00659829]
[1771799078883,1.42357928,1954.9,1954.6,0.00659829]
[1771799079086,1.42357928,1954.9,1954.4,1.36658785]
[1771799079286,1.42357928,1954.9,1954.5,0.00659829]
[1771799079492,1.42357928,1954.9,1954.4,1.36658785]
[1771799079984,1.42357928,1954.9,1954.5,0.00659829]
[1771799080185,1.42357928,1954.9,1954.4,1.36658785]
[1771799080492,1.42357928,1954.9,1954.6,0.00659829]
[1771799080892,1.42357928,1954.9,1954.7,0.00659829]
[1771799081193,1.42357928,1954.9,1954.4,1.36658785]
[1771799081392,1.42357928,1954.9,1954.6,0.00659829]
[1771799081592,1.42357928,1954.9,1954.4,1.36658785]
[1771799081894,1.42357928,1954.9,1954.6,0.00659829]
[1771799082096,1.42357928,1954.9,1954.4,1.36658785]
[1771799082395,1.42357928,1954.9,1954.6,0.00659829]
[1771799082991,1.42357928,1954.9,1954.4,1.36658785]
[1771799083393,1.42357928,1954.9,1954.0,1.35310126]
[1771799088199,1.42357928,1954.9,1954.1,1.35310126]
[1771799088500,1.42357928,1954.9,1954.0,6.37756216]
[1771799088501,1.3218445,1955.0,1954.3,1.35310126]
[1771799090901,1.32764476,1955.1,1954.3,1.35310126]
[1771799095103,1.32764476,1955.1,1954.4,1.35310126]
[1771799098603,1.32764476,1955.1,1954.4,7.73066342]
[1771799098803,1.32764476,1955.1,1954.5,1.35310126]
[1771799117309,1.20062269,1955.0,1954.5,1.35310126]
[1771799117506,1.20062269,1954.8,1954.4,1.22410548]
[1771799117904,1.20062269,1954.6,1954.3,6.37756216]
[1771799118105,1.20062269,1954.5,1954.2,1.22410548]
[1771799121909,1.20062269,1954.5,1954.1,1.22410548]
[1771799128417,1.20062269,1954.5,1953.8,1.17288958]
[1771799128713,1.20062269,1954.5,1953.9,1.22410548]
[1771799140434,1.18636313,1954.8,1954.2,1.16328772]
[1771799159152,1.18636313,1955.0,1954.6,1.16328772]
[1771799159351,1.16994137,1955.0,1954.6,1.16328772]
[1771799160252,0.00580026,1955.1,1954.6,1.16328772]
[1771799160551,1.19216339,1955.1,1954.6,1.16328772]
[1771799162957,0.00580026,1955.1,1954.6,1.16328772]
[1771799163260,1.19216339,1955.1,1954.6,1.16328772]
[1771799169261,1.09554673,1955.0,1954.4,1.0410942]
[1771799172859,1.09554673,1955.0,1954.2,9.0130469]
[1771799173062,1.09554673,1954.9,1954.2,1.0410942]
[1771799173558,1.09554673,1954.9,1954.3,1.0410942]
[1771799175062,1.09554673,1955.0,1954.7,1.0410942]
[1771799175761,1.09554673,1955.0,1954.5,1.02300824]
[1771799181665,1.09554673,1955.0,1954.3,1.02300824]
[1771799182965,1.09554673,1955.0,1954.4,1.02300824]
[1771799189174,1.09554673,1955.0,1954.4,8.99496094]
[1771799189375,1.09554673,1955.0,1954.5,1.02300824]
[1771799202000,1.09554673,1955.0,1954.6,1.04495826]
[1771799208000,1.03130928,1955.1,1954.6,1.04495826]
[1771799210106,1.03130928,1955.1,1954.3,8.00266062]
[1771799210318,1.03130928,1955.1,1953.5,0.00514116]
[1771799210319,1.17258503,1954.8,1953.6,1.04495826]
[1771799210609,5.91201952,1954.7,1953.6,1.04495826]
[1771799210806,0.46030455,1954.6,1953.6,1.04495826]
[1771799211007,6.37232407,1954.5,1953.6,1.04495826]
[1771799211203,5.4673203,1954.8,1953.6,1.04495826]
[1771799211400,7.11533357,1954.7,1953.6,1.04495826]
[1771799211607,0.00475492,1954.5,1953.6,1.04495826]
[1771799214811,0.00475492,1954.5,1953.6,5.62635956]
[1771799215010,0.00475492,1954.5,1953.6,1.04495826]
[1771799215511,0.00475492,1954.5,1953.7,1.04495826]
[1771799219713,1.02550902,1954.6,1953.9,1.04495826]
[1771799220112,1.02550902,1954.6,1954.0,4.5814013]
[1771799220319,1.02550902,1954.6,1954.1,1.04495826]
[1771799223626,1.02550902,1954.6,1954.2,1.05006769]
[1771799227829,1.02550902,1954.6,1954.2,5.63146899]
[1771799230321,1.02550902,1954.6,1954.2,1.05006769]
[1771799230928,1.02550902,1954.6,1954.3,4.5814013]
[1771799233430,1.02550902,1954.6,1954.2,1.05006769]
[1771799233730,1.02550902,1954.6,1954.3,4.5814013]
[1771799233931,1.02550902,1954.6,1954.2,1.05006769]
[1771799234232,1.02550902,1954.6,1954.3,6.49544796]
[1771799234432,1.02550902,1954.6,1954.3,1.91404666]
[1771799234731,1.02550902,1954.6,1954.4,4.5814013]
[1771799235832,1.02550902,1954.6,1954.5,4.5814013]
[1771799236033,1.02550902,1954.6,1954.3,1.91404666]
[1771799236431,1.02550902,1954.6,1954.4,4.5814013]
[1771799236630,1.02550902,1954.6,1954.3,1.91404666]
[1771799236834,1.02550902,1954.6,1954.4,4.5814013]
[1771799237036,1.02550902,1954.6,1953.9,1.81400928]
[1771799237334,1.17349377,1954.5,1954.3,1.81400928]
[1771799237529,3.04851083,1954.5,1954.2,6.39541058]
[1771799237734,3.04851083,1954.5,1954.2,1.81400928]
[1771799237934,3.04851083,1954.5,1954.4,4.5814013]
[1771799238233,3.04851083,1954.5,1954.2,1.81400928]
[1771799239834,3.04851083,1954.5,1954.2,0.64600929]
[1771799240931,3.04851083,1954.7,1954.2,0.64600929]
[1771799241338,1.17349377,1954.5,1954.1,1.81400928]
[1771799241533,1.87501706,1954.4,1954.1,1.81400928]
[1771799242340,3.04851083,1954.5,1954.1,1.81400928]
[1771799247038,1.87501706,1954.7,1954.1,2.98750305]
[1771799247243,3.04851083,1954.9,1954.2,1.81400928]
[1771799248142,1.87501706,1954.9,1954.2,1.81400928]
[1771799249046,1.17929403,1955.1,1954.4,1.81400928]
[1771799249047,3.05431109,1955.1,1954.4,1.81400928]
[1771799250144,1.87501706,1955.0,1954.4,1.81400928]
[1771799261253,1.98446042,1955.6,1955.0,1.87754045]
[1771799261454,3.15795419,1955.6,1955.0,1.87754045]
[1771799261655,1.98446042,1955.5,1955.0,1.87754045]
[1771799262362,1.98997834,1955.5,1955.0,1.88244155]
[1771799266464,1.98997834,1955.5,1954.8,1.87754045]
[1771799266465,1.17349377,1955.2,1954.8,1.87754045]
[1771799266666,1.98446042,1955.1,1954.8,1.87754045]
[1771799266865,1.98446042,1955.4,1954.8,1.87754045]
[1771799267168,1.98997834,1955.5,1954.8,1.87754045]
[1771799267465,1.98997834,1955.5,1954.8,1.88304091]
[1771799277676,1.98997834,1955.5,1954.9,3.861]
[1771799277877,1.98997834,1955.5,1955.0,1.87754045]
[1771799278077,1.98446042,1955.4,1955.0,1.87754045]
[1771799283479,1.98446042,1955.4,1955.0,5.73854045]
[1771799284180,1.98446042,1955.4,1955.1,1.87754045]
[1771799289485,1.98446042,1955.4,1954.9,6.12887334]
[1771799290386,1.98446042,1955.4,1955.0,2.26787334]
[1771799291981,1.17349377,1955.3,1954.9,6.12887334]
[1771799292187,2.18972988,1955.2,1954.9,3.861]
[1771799292390,2.18972988,1955.2,1955.0,3.861]
[1771799293488,2.18972988,1955.2,1954.8,2.2733738]
[1771799308700,0.00551792,1955.5,1954.8,2.2733738]
[1771799308894,2.12653817,1955.4,1954.8,2.2733738]
[1771799309898,2.12653817,1955.4,1954.9,2.05195247]
[1771799313295,2.12653817,1955.4,1954.8,0.00550046]
[1771799313598,2.12653817,1955.4,1954.8,2.05745293]
[1771799320508,2.12653817,1955.4,1954.9,1.97561707]
[1771799324510,2.12653817,1955.4,1955.0,1.97561707]
[1771799325212,2.12653817,1955.4,1954.9,3.861]
[1771799325506,2.12653817,1955.4,1954.9,5.83661707]
[1771799327510,2.12653817,1955.4,1955.0,1.97561707]
[1771799327711,2.12653817,1955.4,1954.9,5.83661707]
[1771799329320,2.12653817,1955.4,1955.0,1.97561707]
[1771799336325,2.12653817,1955.4,1955.0,5.83661707]
[1771799336727,2.12653817,1955.4,1955.1,1.97561707]
[1771799340630,2.05308814,1955.5,1955.1,1.97561707]
[1771799341728,2.05678499,1955.5,1955.1,1.97561707]
[1771799352635,1.94885519,1955.7,1955.1,1.97561707]
[1771799353641,1.95365325,1955.7,1955.1,1.97561707]
[1771799361350,1.88158314,1955.6,1955.1,1.97561707]
[1771799379370,1.17209456,1955.5,1954.9,3.861]